bitfinex-derivatives/quotes_ETHF0:USTF0_20260102
["timestamp","ask_amount","ask_price","bid_price","bid_amount"]
[1767376606424,0.1337157,3123.6,3122.7,0.00480731]
[1767376609220,0.00480731,3123.7,3122.7,0.1465405]
[1767376610428,0.00480731,3123.7,3122.7,0.00480731]
[1767376616642,0.13852301,3123.7,3122.4,0.00243515]
[1767376617532,0.16015,3123.6,3122.4,0.00243515]
[1767376617731,0.16015,3123.6,3122.7,0.00480731]
[1767376617931,0.2938657,3123.6,3122.7,0.00480731]
[1767376619037,0.16015,3123.6,3122.7,0.00480731]
[1767376620938,0.00480731,3123.7,3122.7,0.00480731]
[1767376623739,0.1432329,3123.7,3122.7,0.00480731]
[1767376624844,0.00480731,3123.7,3122.7,0.13990535]
[1767376625433,0.00480731,3123.7,3122.7,0.00480731]
[1767376635255,0.00480731,3123.7,3122.7,0.13990535]
[1767376643258,0.00480731,3123.7,3122.7,0.00480731]
[1767376644861,0.00480731,3123.7,3122.7,0.13990535]
[1767376647263,0.00480731,3123.7,3122.7,0.00480731]
[1767376647562,0.16495731,3123.7,3122.7,0.00480731]
[1767376648157,0.30841454,3123.7,3122.7,0.00480731]
[1767376648760,0.16016,3123.6,3122.7,0.00480731]
[1767376653265,0.29387939,3123.3,3121.5,0.14442249]
[1767376653470,0.29387939,3123.3,3121.7,0.14442249]
[1767376653768,0.16017,3123.3,3121.7,0.14442249]
[1767376653964,0.00480731,3123.7,3121.9,0.14442249]
[1767376654156,0.00480731,3123.7,3122.0,0.14442249]
[1767376654360,0.00724246,3123.7,3122.5,0.00480731]
[1767376655460,0.00724246,3123.7,3122.5,0.1492298]
[1767376656567,0.29381939,3124.5,3122.7,0.14442249]
[1767376657569,0.00480731,3123.9,3122.7,0.14442249]
[1767376661166,0.00480731,3123.9,3122.5,0.00480731]
[1767376661374,0.00480731,3123.9,3122.5,4.42680731]
[1767376661967,0.1385167,3123.9,3122.5,0.00480731]
[1767376662674,0.2986567,3123.9,3122.5,0.00480731]
[1767376663069,0.2986567,3123.9,3122.5,0.1492298]
[1767376663070,0.16494731,3123.9,3122.5,0.1492298]
[1767376663978,0.00480731,3123.9,3122.5,0.1492298]
[1767376664164,0.00480731,3123.9,3122.7,0.14442249]
[1767376667780,0.00480731,3123.9,3122.7,4.425]
[1767376669278,0.00480731,3123.9,3122.6,4.426]
[1767376669482,0.00480731,3123.9,3122.6,4.57042249]
[1767376669680,0.00480731,3123.9,3122.7,0.14442249]
[1767376674480,0.1601,3124.7,3122.7,0.14442249]
[1767376675281,0.00480731,3124.0,3122.7,0.14442249]
[1767376675481,0.00480731,3124.0,3122.8,4.43]
[1767376676582,0.00480731,3124.0,3122.7,4.57542249]
[1767376680496,0.00480731,3124.0,3122.7,0.14442249]
[1767376680688,0.00480731,3124.0,3122.7,4.57842249]
[1767376683291,0.00480731,3124.0,3122.8,0.14043947]
[1767376686293,0.16494731,3124.0,3122.8,0.14043947]
[1767376686503,0.16494731,3124.0,3122.6,4.438]
[1767376686504,0.16014,3123.9,3122.6,4.438]
[1767376687194,0.16014,3123.9,3122.5,0.00480731]
[1767376687396,0.16014,3123.8,3122.5,0.00480731]
[1767376688201,0.16014,3123.8,3122.4,0.14024678]
[1767376689305,0.16014,3123.8,3122.8,0.00480731]
[1767376689504,0.16015,3123.7,3122.8,0.00480731]
[1767376690097,0.00480731,3124.0,3122.8,0.00480731]
[1767376690298,0.00480731,3124.0,3122.8,0.14524678]
[1767376693705,0.00480731,3124.0,3122.8,0.14424678]
[1767376694306,0.16493731,3124.0,3122.8,0.14424678]
[1767376694507,0.16493731,3124.0,3123.0,0.79586615]
[1767376694909,0.16493731,3124.0,3122.8,0.79967346]
[1767376695110,0.16014,3123.9,3122.8,0.79967346]
[1767376695906,0.16014,3123.9,3123.0,0.79586615]
[1767376697005,0.14094355,3124.0,3122.8,0.00380731]
[1767376697311,0.16018,3123.2,3122.1,0.79586615]
[1767376698101,0.16018,3123.2,3122.3,0.00480731]
[1767376698507,0.79586615,3123.6,3122.3,0.00480731]
[1767376698508,0.16018,3123.1,3122.3,0.00480731]
[1767376699414,0.16018,3123.0,3122.3,0.00480731]
[1767376700705,0.95604615,3123.0,3121.9,0.00294327]
[1767376701309,0.16019,3122.9,3121.9,0.00294327]
[1767376701708,0.16019,3122.9,3122.1,0.00320486]
[1767376701912,0.13613624,3122.7,3121.3,0.79586615]
[1767376702507,0.79586615,3122.6,3121.3,0.79586615]
[1767376702706,0.79586615,3122.2,3120.7,0.79586615]
[1767376703012,0.00480731,3121.8,3121.1,0.79586615]
[1767376703213,0.00480731,3121.8,3121.3,0.79586615]
[1767376704212,0.00480731,3121.8,3120.7,0.14300865]
[1767376704410,0.00480731,3121.8,3121.2,0.79586615]
[1767376705212,0.00480731,3121.8,3121.0,0.79586615]
[1767376705416,0.79586615,3121.7,3120.7,0.00256918]
[1767376705622,0.00480731,3121.8,3120.7,0.00256918]
[1767376706013,0.00480731,3121.8,3121.1,0.79586615]
[1767376706712,0.00254003,3122.2,3121.5,0.79586615]
[1767376706918,0.00254003,3122.2,3121.2,0.79586615]
[1767376707719,0.00480731,3122.0,3121.4,0.00480731]
[1767376709021,0.00480731,3122.0,3120.8,0.79586615]
[1767376709219,0.00480731,3122.0,3120.7,0.00256918]
[1767376709419,0.00480731,3122.0,3120.9,0.79586615]
[1767376710220,0.00480731,3122.0,3121.2,0.79586615]
[1767376710624,0.00480731,3122.0,3120.7,0.14155702]
[1767376715332,0.00480731,3122.0,3120.7,0.00256918]
[1767376718525,0.1466506,3122.0,3120.7,0.00256918]
[1767376719729,0.00480731,3122.0,3120.7,0.00256918]
[1767376720532,0.00480731,3122.0,3120.7,0.14155702]
[1767376721936,0.00480731,3122.0,3120.7,0.30185702]
[1767376722136,0.00254003,3122.2,3120.9,0.13898784]
[1767376722334,0.00254003,3122.2,3120.9,0.29927784]
[1767376722637,0.00254003,3122.2,3121.1,0.13898784]
[1767376723230,0.00480731,3122.0,3121.3,0.00480731]
[1767376723635,0.1408,3122.5,3121.3,0.14379515]
[1767376723838,0.30201329,3123.3,3121.5,0.13898784]
[1767376724039,0.14184329,3123.2,3121.4,4.40457407]
[1767376724640,0.00480731,3122.6,3121.4,4.40457407]
[1767376725333,0.00480731,3122.6,3121.4,4.24430407]
[1767376725540,0.00480731,3122.6,3121.3,4.43980731]
[1767376727235,0.00480731,3122.6,3121.3,0.00480731]
[1767376727443,0.00480731,3122.6,3120.7,0.00256918]
[1767376727444,0.14184329,3122.0,3120.7,0.00256918]
[1767376728444,0.14184329,3122.0,3121.0,0.00480731]
[1767376731442,0.16023,3122.1,3121.0,0.00480731]
[1767376732338,0.14184329,3122.4,3121.0,0.00480731]
[1767376732848,0.14184329,3122.4,3121.1,0.79696406]
[1767376733845,0.14184329,3122.4,3121.0,0.00480731]
[1767376735652,0.16022,3122.3,3121.0,0.00480731]
[1767376736352,0.30206329,3122.3,3121.0,0.00480731]
[1767376738045,0.30207329,3122.2,3121.0,0.00480731]
[1767376742046,0.13749195,3122.1,3121.0,0.00480731]
[1767376744557,0.13749195,3122.5,3121.1,0.79696406]
[1767376745355,0.13749195,3122.5,3121.0,0.00480731]
[1767376746052,0.13749195,3122.5,3121.2,0.79696406]
[1767376746354,0.16500731,3122.6,3121.2,0.79696406]
[1767376747946,0.00480731,3122.6,3121.2,0.79696406]
[1767376748560,0.00480731,3122.6,3121.0,0.14050808]
[1767376749354,0.13749195,3123.0,3121.3,0.13570077]
[1767376750459,0.00480731,3122.5,3121.3,0.13570077]
[1767376751962,0.00480731,3122.5,3121.2,0.16027]
[1767376752763,0.00480731,3122.5,3121.1,4.19640277]
[1767376753458,0.00480731,3122.5,3121.0,0.00480731]
[1767376754459,0.00480731,3122.5,3121.0,0.14050808]
[1767376757061,0.1602,3122.8,3121.0,0.14050808]
[1767376757062,0.13749195,3123.2,3121.2,0.13570077]
[1767376757366,0.13749195,3123.2,3121.3,4.39212694]
[1767376757766,0.13749195,3123.2,3121.3,0.13570077]
[1767376758161,0.00480731,3122.6,3121.3,0.13570077]
[1767376758564,0.00480731,3122.6,3121.0,0.00480731]
[1767376758565,0.14229926,3122.6,3121.0,0.00480731]
[1767376766467,0.14229926,3122.6,3121.0,0.14050808]
[1767376766673,0.00480731,3122.6,3121.1,4.33671055]
[1767376768564,0.14617352,3122.6,3121.0,0.16509731]
[1767376772778,0.14617352,3122.6,3121.3,0.79653507]
[1767376773176,0.00480731,3122.6,3121.3,0.79653507]
[1767376773380,0.13408166,3123.0,3121.7,0.79653507]
[1767376773569,0.16017,3123.3,3121.7,0.79653507]
[1767376774474,0.00480731,3122.8,3121.7,0.79653507]
[1767376782689,0.00480731,3122.8,3122.2,0.79619189]
[1767376784286,0.00480731,3122.8,3122.0,0.79619189]
[1767376784585,0.00480731,3122.8,3121.6,0.29292009]
[1767376788789,0.00480731,3122.8,3121.7,0.29291009]
[1767376789890,0.00480731,3122.8,3121.8,4.25303134]
[1767376790092,0.00480731,3122.8,3121.9,0.13266009]
[1767376790785,0.13408166,3123.6,3121.9,0.13266009]
[1767376790986,0.13408166,3123.6,3122.1,0.13266009]
[1767376791784,0.00480731,3123.2,3122.1,0.13266009]
[1767376793690,0.00480731,3123.2,3122.0,0.16023]
[1767376793894,0.00480731,3123.2,3122.0,0.29289009]
[1767376794295,0.00480731,3123.2,3122.0,0.16023]
[1767376797794,0.00480731,3123.2,3122.0,0.29289009]
[1767376798394,0.00480731,3123.2,3122.1,0.13266009]
[1767376798792,0.13408166,3124.0,3122.3,0.13266009]
[1767376799186,0.13408166,3124.0,3122.4,4.44248513]
[1767376799396,0.13408166,3124.0,3122.5,0.14166724]
[1767376799792,0.13041833,3124.4,3122.9,0.00480731]
[1767376799993,0.13041833,3124.4,3122.9,0.00723102]
[1767376800596,0.29052833,3124.4,3122.9,0.00723102]
[1767376800800,0.13041833,3124.3,3122.9,0.00723102]
[1767376801191,0.13041833,3124.1,3122.9,0.00723102]
[1767376801396,0.29054833,3124.1,3122.9,0.00723102]
[1767376801699,0.13041833,3123.9,3122.9,0.00723102]
[1767376802098,0.13041833,3123.4,3121.6,0.14166724]
[1767376803001,0.00480731,3122.8,3122.2,0.00480731]
[1767376803300,0.00480731,3122.8,3121.6,0.0038711]
[1767376803301,0.13522564,3122.8,3121.6,0.0038711]
[1767376804395,0.13522564,3122.8,3121.9,0.00480731]
[1767376804701,0.13041833,3122.5,3121.4,0.79662759]
[1767376804999,0.13041833,3122.5,3120.8,3.36329]
[1767376805298,0.13041833,3122.5,3121.3,0.79662759]
[1767376805493,0.13041833,3122.5,3121.6,0.00480731]
[1767376805894,0.13041833,3122.3,3121.3,0.00342272]
[1767376806105,0.79662759,3122.4,3120.3,0.16032]
[1767376806106,0.13041833,3122.1,3120.3,0.16032]
[1767376806400,0.13041833,3121.9,3120.7,0.79662759]
[1767376806593,0.29063833,3122.4,3120.5,0.14166724]
[1767376806795,0.29063833,3122.4,3121.1,0.00480731]
[1767376807190,0.13041833,3122.4,3121.1,0.00745015]
[1767376807395,0.00480731,3122.8,3121.1,0.00745015]
[1767376807602,0.13522564,3122.8,3121.1,0.00745015]
[1767376809006,0.00480731,3122.8,3121.1,0.14911739]
[1767376809192,0.00480731,3122.8,3121.3,0.14166724]
[1767376809902,0.00480731,3122.8,3121.5,0.14166724]
[1767376810496,0.00480731,3122.8,3121.6,4.22546256]
[1767376810706,0.00480731,3122.8,3121.4,0.16026]
[1767376811004,0.13522564,3122.8,3121.4,0.16026]
[1767376811891,0.00480731,3122.8,3121.4,0.16026]
[1767376812298,0.00480731,3122.8,3121.5,1.2193305]
[1767376812701,0.13041833,3123.2,3121.6,0.14166724]
[1767376813105,0.16016,3123.4,3121.6,0.14166724]
[1767376813704,0.00480731,3122.8,3121.6,0.14166724]
[1767376814100,0.00480731,3122.8,3121.7,4.36385198]
[1767376814302,0.00233743,3123.9,3122.0,1.2193305]
[1767376814506,0.00233743,3123.9,3122.1,0.14166724]
[1767376814805,0.00233743,3123.9,3122.1,4.25312695]
[1767376815007,0.00233743,3123.9,3122.3,0.14166724]
[1767376815210,0.00480731,3123.4,3122.8,0.00480731]
[1767376816605,0.13522564,3123.4,3121.5,1.2193305]
[1767376816811,0.13522564,3123.4,3121.6,1.67126]
[1767376817011,0.13522564,3123.4,3121.6,5.86034736]
[1767376817507,0.13522564,3123.4,3122.2,0.00480731]
[1767376819915,0.16017,3123.3,3122.2,0.00480731]
[1767376820216,0.29060833,3122.9,3121.0,0.16029]
[1767376820405,0.13041833,3122.7,3121.0,0.16029]
[1767376821114,0.13041833,3122.7,3121.6,0.00480731]
[1767376826011,0.13041833,3123.3,3121.6,0.00480731]
[1767376826218,0.13041833,3123.3,3121.7,4.24582879]
[1767376826418,0.00480731,3123.4,3122.0,1.36099774]
[1767376826618,0.13041833,3123.8,3122.1,0.14166724]
[1767376826815,0.00233743,3123.9,3122.1,4.28740992]
[1767376827005,0.00233743,3123.9,3122.2,0.14166724]
[1767376827208,0.13590372,3123.9,3122.2,0.14166724]
[1767376827611,0.00480731,3123.4,3122.2,0.30188724]
[1767376829615,0.00480731,3123.4,3122.3,0.30299903]
[1767376829821,0.00233743,3123.9,3122.4,0.14277903]
[1767376830017,0.1601,3124.7,3122.0,5.6453305]
[1767376830018,0.13679335,3124.7,3123.0,1.2193305]
[1767376830708,0.00480731,3124.2,3123.5,0.00480731]
[1767376830908,0.13679335,3124.7,3123.5,0.00480731]
[1767376831110,0.13918282,3124.7,3123.5,0.00792618]
[1767376831317,0.00238947,3124.7,3123.5,0.00792618]
[1767376831920,0.00480731,3124.4,3123.5,0.00792618]
[1767376832123,0.00238947,3124.7,3123.5,0.00792618]
[1767376833828,0.00238947,3124.7,3123.6,4.431]
[1767376834717,0.13679335,3125.2,3123.6,4.57377903]
[1767376835018,0.13679335,3125.9,3124.1,0.30290903]
[1767376835522,0.13679335,3125.9,3124.2,4.07067274]
[1767376835725,0.13914879,3125.9,3124.2,4.07067274]
[1767376836021,0.00235544,3125.9,3124.3,0.14277903]
[1767376836327,0.00235544,3125.9,3124.4,4.22966352]
[1767376836624,0.00235544,3125.9,3124.5,4.431]
[1767376836824,0.00235544,3125.9,3124.5,5.6503305]
[1767376837128,0.00235544,3125.9,3124.5,5.79310953]
[1767376837820,0.13679335,3126.3,3124.7,0.14277903]
[1767376838026,0.16001,3126.5,3125.2,0.00479938]
[1767376838819,0.16270484,3126.5,3125.2,0.00479938]
[1767376839522,0.13679335,3126.4,3125.2,0.00479938]
[1767376839723,0.16270484,3126.5,3123.9,3.202]
[1767376839724,0.29682335,3126.0,3123.9,3.202]
[1767376840028,0.13679335,3125.9,3124.0,4.37537445]
[1767376840619,0.13679335,3125.9,3124.0,4.10937445]
[1767376840815,0.00477296,3125.3,3124.6,0.00479938]
[1767376841322,0.16003,3126.0,3124.6,0.00479938]
[1767376841524,0.13679335,3125.9,3124.6,0.00479938]
[1767376843530,0.13679335,3125.8,3124.6,0.00479938]
[1767376846230,0.13679335,3125.5,3123.8,1.49]
[1767376846437,0.29685335,3125.4,3123.8,1.49]
[1767376847232,0.00479938,3124.9,3124.3,0.00479938]
[1767376847927,0.14159273,3124.9,3123.5,0.00311887]
[1767376848127,0.13679335,3124.7,3123.5,0.00311887]
[1767376848522,0.29689335,3124.7,3123.5,0.00311887]
[1767376848726,0.13679335,3124.6,3123.5,0.00311887]
[1767376849033,0.13679335,3124.6,3123.7,0.00479938]
[1767376850225,0.1601,3124.7,3123.7,0.00479938]
[1767376850725,0.00479938,3124.9,3123.7,0.00479938]
[1767376851726,0.00479938,3124.9,3123.7,0.14757841]
[1767376851922,0.13679335,3125.5,3123.9,0.14277903]
[1767376852840,0.00479938,3125.0,3123.8,4.14813869]
[1767376854329,0.00479938,3125.0,3123.8,4.29091772]
[1767376855038,0.00479938,3125.0,3123.9,0.14277903]
[1767376857135,0.13679335,3125.9,3123.9,0.14277903]
[1767376857530,0.13679335,3125.8,3123.9,0.14277903]
[1767376858535,0.13679335,3126.3,3124.3,0.14277903]
[1767376858737,0.13679335,3126.3,3124.2,0.16012]
[1767376858738,0.13679335,3126.3,3124.5,0.14277903]
[1767376858941,0.13679335,3126.3,3124.6,4.57377903]
[1767376859942,0.13679335,3126.3,3124.7,0.13756629]
[1767376860944,0.13679335,3126.3,3124.8,4.08581974]
[1767376861149,0.00269484,3126.5,3125.1,0.13756629]
[1767376861354,0.13613988,3127.3,3125.5,0.14236567]
[1767376861647,0.13613988,3127.3,3125.5,4.36579938]
[1767376862644,0.13613988,3127.2,3125.5,0.00479938]
[1767376863244,0.13613988,3127.2,3125.5,0.14236567]
[1767376863850,0.13613988,3127.2,3125.5,0.00479938]
[1767376865346,0.13613988,3127.2,3125.5,0.14236567]
[1767376867546,0.13613988,3127.2,3125.5,0.00479938]
[1767376869251,0.13613988,3126.4,3125.5,0.00479938]
[1767376869643,0.13613988,3126.9,3125.5,0.00479938]
[1767376870347,0.15997,3127.2,3125.5,0.00479938]
[1767376870849,0.15997,3127.2,3125.5,0.14236567]
[1767376871653,0.13613988,3127.4,3125.6,4.10422318]
[1767376872451,0.13613988,3127.4,3125.5,0.14236567]
[1767376873547,0.15997,3127.3,3125.5,0.14236567]
[1767376873750,0.13613988,3126.9,3125.5,0.00479938]
[1767376874454,0.13613988,3126.6,3125.5,0.00479938]
[1767376874861,0.13613988,3126.6,3124.7,0.1601]
[1767376875553,0.13613988,3126.5,3124.7,0.1601]
[1767376875758,0.00479938,3125.9,3125.3,0.00479938]
[1767376875960,0.00479938,3125.9,3124.4,0.13756629]
[1767376876357,0.00479938,3125.9,3124.5,4.09743202]
[1767376876753,0.00479938,3125.9,3124.4,0.13756629]
[1767376876958,0.00479938,3125.9,3124.8,0.00479938]
[1767376877353,0.14093926,3125.9,3124.8,0.00479938]
[1767376878460,0.16,3126.6,3124.8,0.14236567]
[1767376878668,0.13613988,3126.9,3125.0,0.13756629]
[1767376878958,0.15997,3127.2,3125.2,0.13756629]
[1767376879557,0.00479938,3126.5,3125.3,4.20553635]
[1767376879756,0.00479938,3126.5,3125.4,0.13756629]
[1767376880358,0.00479938,3126.5,3125.5,4.06797006]
[1767376880560,0.15997,3127.2,3125.6,0.13756629]
[1767376880864,0.15997,3127.2,3125.7,4.21056595]
[1767376881051,0.15997,3127.2,3125.7,4.21464284]
[1767376881861,0.15997,3127.2,3125.7,4.43207689]
[1767376882163,0.15997,3127.2,3125.7,0.00407689]
[1767376882164,0.13613988,3127.1,3125.7,0.00407689]
[1767376884363,0.13613988,3126.8,3125.7,0.00407689]
[1767376884561,0.13613988,3126.8,3125.9,0.00479938]
[1767376884962,0.15999,3126.9,3125.9,0.00479938]
[1767376885264,0.13613988,3127.3,3125.9,0.00479938]
[1767376885672,0.13613988,3127.0,3125.9,0.00479938]
[1767376886158,0.13613988,3126.9,3126.0,0.7551]
[1767376886357,0.15999,3126.8,3126.0,0.44330472]
[1767376886958,0.16,3126.7,3126.0,0.44330472]
[1767376887159,0.02228062,3127.3,3126.0,0.11698472]
[1767376887361,0.16001,3126.5,3126.0,4.72e-06]
[1767376887561,0.16001,3126.4,3125.7,0.00407689]
[1767376887762,0.02228062,3127.3,3125.7,0.00407689]
[1767376887763,3.205,3127.3,3125.7,1e-08]
[1767376888069,0.16003,3126.1,3125.7,1e-08]
[1767376888270,0.16003,3126.1,3124.8,0.13756629]
[1767376888470,0.00479938,3125.8,3125.1,0.00479938]
[1767376889269,0.1680984,3125.8,3125.1,0.00817079]
[1767376889465,0.16006,3125.5,3123.8,0.13560952]
[1767376890367,0.16006,3125.5,3124.3,0.00479938]
[1767376891064,0.0080584,3125.8,3124.3,0.00479938]
[1767376891065,0.16006,3125.4,3124.3,0.00479938]
[1767376891658,0.16006,3125.4,3124.3,0.1404089]
[1767376893766,0.0080584,3125.8,3124.3,0.1404089]
[1767376896776,0.0080584,3125.8,3124.5,0.13297407]
[1767376897073,0.0080584,3125.8,3124.6,4.17018162]
[1767376897278,0.0080584,3125.8,3124.7,0.13297407]
[1767376898174,0.16,3126.6,3124.9,0.13297407]
[1767376898378,0.16001,3126.5,3124.9,0.13297407]
[1767376899278,0.00479938,3126.0,3124.9,0.13297407]
[1767376911782,0.00343123,3126.5,3124.9,0.13297407]
[1767376912982,0.00343123,3126.5,3125.2,0.14432049]
[1767376913180,0.15994,3127.7,3125.4,1.21593782]
[1767376913379,0.15994,3127.7,3126.3,0.14432049]
[1767376913580,0.1599,3128.5,3126.3,0.14432049]
[1767376913774,0.1599,3128.5,3126.5,0.14432049]
[1767376914281,0.16100164,3128.5,3126.5,0.1481381]
[1767376914488,0.00110164,3128.5,3126.5,0.1481381]
[1767376915074,0.15991,3128.3,3126.5,0.1481381]
[1767376915279,0.15992,3128.2,3126.5,0.1481381]
[1767376919384,0.15992,3128.2,3126.7,0.14290974]
[1767376920192,4.305,3128.2,3126.6,0.6931]
[1767376920382,0.15994,3127.7,3126.6,0.6931]
[1767376920583,4.305,3128.2,3126.6,0.6931]
[1767376920788,0.15996,3127.4,3126.6,0.6931]
[1767376921491,0.15996,3127.3,3126.6,0.6931]
[1767376922080,0.15996,3127.3,3126.7,0.14290974]
[1767376922694,4.305,3128.2,3126.7,0.14290974]
[1767376922889,0.15994,3127.8,3126.7,0.14290974]
[1767376923686,0.15994,3127.7,3126.7,0.14290974]
[1767376924386,0.15996,3127.5,3126.6,0.6931]
[1767376925299,0.15996,3127.4,3126.6,0.6931]
[1767376925887,7.51,3128.2,3126.6,0.6931]
[1767376926092,0.15997,3127.3,3126.6,0.68567426]
[1767376927398,0.15994,3127.8,3126.7,0.14290974]
[1767376930396,4.312,3128.4,3126.7,0.14290974]
[1767376930397,7.517,3128.4,3126.7,0.14290974]
[1767376930602,4.42093782,3128.2,3126.6,0.68567426]
[1767376930795,0.15997,3127.2,3126.6,0.68567426]
[1767376931193,4.42093782,3128.2,3126.6,0.14040398]
[1767376931397,0.15999,3126.9,3126.2,0.00479938]
[1767376931598,0.15999,3126.8,3125.7,0.14290974]
[1767376931806,0.15999,3126.7,3125.7,0.14290974]
[1767376932508,0.00479938,3126.5,3125.9,0.00479938]
[1767376934608,0.00479938,3126.5,3125.7,0.00289248]
[1767376934908,0.16002,3126.3,3125.2,0.14290974]
[1767376935816,0.16228818,3126.3,3125.4,0.00479938]
[1767376936111,0.16228818,3126.3,3125.4,0.14770912]
[1767376937502,3.199,3127.2,3125.4,0.14770912]
[1767376937503,0.01520634,3127.1,3125.4,0.14770912]
[1767376937702,0.15997,3127.3,3125.6,0.14290974]
[1767376937912,0.29738602,3127.2,3125.4,0.00479938]
[1767376938410,0.00479938,3126.6,3125.4,0.00479938]
[1767376943120,4.35979938,3126.6,3125.4,0.00479938]
[1767376943321,4.35879938,3126.6,3125.4,0.00479938]
[1767376943520,0.16001,3126.5,3125.4,0.00479938]
[1767376943724,0.13741602,3126.5,3125.4,0.00479938]
[1767376944518,0.16001,3126.3,3125.4,0.00479938]
[1767376948122,0.00479938,3126.6,3125.4,0.00479938]
[1767376950516,0.00310369,3127.2,3125.5,4.10044883]
[1767376950815,0.00310369,3127.2,3125.8,1.30298752]
[1767376951713,0.14169082,3127.2,3125.4,0.00479938]
[1767376952218,0.14169082,3127.2,3125.5,4.19906173]
[1767376954308,0.14169082,3127.2,3125.5,4.35912173]
[1767376954714,0.00310369,3127.2,3125.5,4.35912173]
[1767376955419,0.00310369,3127.2,3125.6,0.16005]
[1767376955614,0.00310369,3127.2,3125.7,0.08720509]
[1767376955820,0.00310369,3127.2,3125.8,1.21593782]
[1767376956217,0.00310369,3127.2,3125.9,4.0977266]
[1767376958430,0.00310369,3127.2,3125.8,0.16004]
[1767376960225,0.14169082,3127.2,3125.4,0.09227134]
[1767376960416,0.14169082,3127.2,3125.4,0.00479938]
[1767376960622,0.14169082,3127.2,3125.5,4.10853127]
[1767376961628,0.13858713,3126.9,3125.4,0.00479938]
[1767376961830,0.13858713,3126.8,3125.4,0.00479938]
[1767376962222,0.13858713,3126.7,3125.4,0.00479938]
[1767376965021,0.13858713,3126.6,3125.4,0.00479938]
[1767376965224,0.16,3126.6,3125.4,0.00479938]
[1767376965428,0.13858713,3126.5,3125.4,0.00479938]
[1767376967628,0.13858713,3126.1,3125.4,0.00479938]
[1767376967831,0.13858713,3126.1,3125.2,0.00269298]
[1767376968934,0.13858713,3125.9,3124.1,0.16013]
[1767376969730,0.13858713,3125.9,3123.7,4.323]
[1767376969731,0.13858713,3125.7,3123.7,4.323]
[1767376970039,0.13858713,3125.7,3124.9,0.00479938]
[1767376971429,0.13858713,3125.7,3124.7,0.48991359]
[1767376971937,0.00479938,3126.0,3124.7,0.48991359]
[1767376972326,0.00479938,3126.0,3125.0,0.00479938]
[1767376977742,0.14338651,3126.0,3125.0,0.00479938]
[1767376978129,0.30341651,3126.0,3125.0,0.00479938]
[1767376978436,0.13858713,3125.9,3125.0,0.00479938]
[1767376980737,0.00479938,3126.0,3125.0,0.00479938]
[1767376982338,0.13916249,3126.9,3125.0,0.00479938]
[1767376983131,0.00479938,3126.3,3125.0,0.00479938]
[1767376983339,0.14396187,3126.3,3125.0,0.00479938]
[1767376984639,0.00310369,3127.2,3125.1,4.16256711]
[1767376984640,0.13916249,3126.8,3125.1,4.16256711]
[1767376985241,0.16307369,3127.2,3125.1,4.25261307]
[1767376985556,0.00310369,3127.2,3125.8,0.16004]
[1767376985743,0.00479938,3126.8,3125.8,0.16004]
[1767376986044,0.00310369,3127.2,3125.8,0.16004]
[1767376986240,0.14226618,3127.2,3125.2,4.18156407]
[1767376986439,0.14226618,3127.2,3125.2,0.16007]
[1767376986751,0.14226618,3127.2,3125.3,4.15560748]
[1767376987451,0.14226618,3127.2,3125.2,0.16007]
[1767376989554,0.13916249,3127.1,3125.2,0.16007]
[1767376991341,0.00310369,3127.2,3125.4,0.2490368]
[1767376991752,0.00310369,3127.2,3125.5,4.23982535]
[1767376991947,0.00310369,3127.2,3125.6,0.16005]
[1767376992347,0.00310369,3127.2,3125.7,4.22611775]
[1767376992544,0.14226618,3127.2,3125.6,0.16005]
[1767376992752,0.14226618,3127.2,3125.1,4.02149407]
[1767376992946,0.14226618,3127.2,3125.0,0.00479938]
[1767376993154,0.14226618,3127.2,3125.2,4.24713651]
[1767376993354,0.14226618,3127.2,3125.1,4.24713651]
[1767376993653,0.14226618,3127.2,3125.1,0.16007]
[1767376993854,0.14226618,3127.2,3125.1,4.40720651]
[1767376994860,0.14226618,3127.2,3125.2,0.16007]
[1767376995157,0.14226618,3127.2,3125.3,4.16814304]
[1767376995952,0.14226618,3127.2,3125.4,0.16006]
[1767376996361,0.13916249,3127.1,3125.5,4.13936076]
[1767376996659,0.13916249,3127.1,3125.4,0.16006]
[1767376998160,0.13916249,3127.1,3125.5,0.6008]
[1767376998561,0.13916249,3126.8,3125.5,0.6008]
[1767376999263,0.13916249,3126.7,3125.5,0.6008]
[1767377005468,0.14226618,3127.2,3125.5,0.6008]
[1767377011173,0.13364142,3127.1,3125.5,0.6008]
[1767377015374,0.13364142,3127.0,3125.5,0.6008]
[1767377015773,0.16,3126.6,3125.5,0.6008]
[1767377015969,0.13364142,3126.3,3125.5,0.6008]
[1767377016271,0.00310369,3127.2,3125.5,0.6008]
[1767377016272,0.13364142,3126.8,3125.5,0.6008]
[1767377017571,0.13364142,3126.7,3125.5,0.6008]
[1767377017779,0.13364142,3126.6,3125.5,0.6008]
[1767377017973,0.13364142,3127.0,3125.5,0.6008]
[1767377024184,0.13364142,3126.7,3125.5,0.6008]
[1767377024387,0.13364142,3126.6,3125.5,0.6008]
[1767377025293,0.16,3126.7,3125.5,0.6008]
[1767377027082,0.13364142,3127.0,3125.5,0.6008]
[1767377027678,0.00310369,3127.2,3125.5,0.69296001]
[1767377027885,0.00310369,3127.2,3125.7,1.30809414]
[1767377028090,0.13674511,3127.2,3125.6,0.16005]
[1767377030986,0.13674511,3127.2,3125.7,4.22224655]
[1767377031292,0.00310369,3127.2,3125.7,4.22224655]
[1767377031491,0.00310369,3127.2,3125.7,5.68932468]
[1767377031887,0.00310369,3127.2,3125.7,1.46707813]
[1767377032088,0.00310369,3127.2,3125.8,4.11549524]
[1767377034795,0.00310369,3127.2,3125.8,4.20684595]
[1767377034988,0.13364142,3127.7,3126.0,0.25138071]
[1767377035184,0.13364142,3128.1,3126.2,1.30418115]
[1767377035384,0.13364142,3128.1,3126.8,0.00479938]
[1767377036091,0.13754177,3128.1,3126.8,0.00479938]
[1767377041094,0.00390035,3128.1,3126.8,0.00479938]
[1767377041997,0.14728718,3128.1,3126.8,0.00479938]
[1767377045204,0.14728718,3128.1,3126.9,0.5482]
[1767377045396,0.14728718,3128.1,3126.9,0.55169496]
[1767377046701,0.14728718,3128.1,3124.5,7.5976442]
[1767377046702,0.15995,3127.5,3125.6,0.13562589]
[1767377046897,0.14338683,3127.6,3125.6,0.13562589]
[1767377047408,0.15997,3127.2,3125.6,0.13562589]
[1767377047603,0.15997,3127.2,3125.6,0.13955917]
[1767377047815,0.00479938,3126.7,3126.1,0.00479938]
[1767377048004,0.00479938,3126.7,3125.6,0.00393328]
[1767377049110,0.00479938,3126.7,3125.8,0.00479938]
[1767377051212,4.41493413,3127.8,3125.8,0.00479938]
[1767377051213,0.15996,3127.5,3126.0,0.13562589]
[1767377051715,0.15992,3128.2,3126.0,0.13562589]
[1767377051910,0.15992,3128.2,3125.9,1.21593413]
[1767377051911,0.15992,3128.2,3126.2,0.13562589]